[Event "Late-Titled-Tuesday-Blitz-May-14-2024"]
[Site "Chess.com"]
[Date "2024.05.14"]
[Round "2"]
[White "BabageldiAnnaberdiyev"]
[Black "kingofthenil"]
[Result "0-1"]
[WhiteElo "2589"]
[BlackElo "2865"]
[TimeControl "180+1"]
[EndTime "14:17:17 PDT"]
[Termination "kingofthenil won by resignation"]

1. e4 {[%clk 0:03:00.9]} 1... e6 {[%clk 0:02:57.4]} 2. d4 {[%clk 0:02:59.7]}
2... d5 {[%clk 0:02:58.3]} 3. e5 {[%clk 0:02:59.9]} 3... Nc6 {[%clk 0:02:58.2]}
4. c3 {[%clk 0:03:00.8]} 4... f6 {[%clk 0:02:57.9]} 5. Nf3 {[%clk 0:02:56.8]}
5... fxe5 {[%clk 0:02:57.7]} 6. Bb5 {[%clk 0:02:56.6]} 6... e4 {[%clk
0:02:34.7]} 7. Ne5 {[%clk 0:02:56]} 7... Ne7 {[%clk 0:02:35.3]} 8. Bg5 {[%clk
0:02:52.8]} 8... Bd7 {[%clk 0:02:33.9]} 9. Bxe7 {[%clk 0:02:51.4]} 9... Qxe7
{[%clk 0:02:33.3]} 10. Qh5+ {[%clk 0:02:49]} 10... g6 {[%clk 0:02:33.2]} 11.
Nxg6 {[%clk 0:02:47.2]} 11... Qf7 {[%clk 0:02:31.5]} 12. Nf4 {[%clk 0:02:42.8]}
12... Bd6 {[%clk 0:02:21.9]} 13. Qxf7+ {[%clk 0:02:36.7]} 13... Kxf7 {[%clk
0:02:22.8]} 14. Ne2 {[%clk 0:02:35.8]} 14... Rhg8 {[%clk 0:02:19.6]} 15. g3
{[%clk 0:02:33.3]} 15... Raf8 {[%clk 0:02:17.7]} 16. Nd2 {[%clk 0:02:30.3]}
16... Ke7 {[%clk 0:02:17.1]} 17. O-O {[%clk 0:02:06.7]} 17... a6 {[%clk
0:02:15.6]} 18. Bxc6 {[%clk 0:02:05.8]} 18... Bxc6 {[%clk 0:02:15.8]} 19. a4
{[%clk 0:02:06.2]} 19... Be8 {[%clk 0:02:13.2]} 20. f4 {[%clk 0:01:59.1]} 20...
Bh5 {[%clk 0:02:03.7]} 21. Rae1 {[%clk 0:01:55.3]} 21... Bxe2 {[%clk 0:02:02.5]}
22. Rxe2 {[%clk 0:01:56.2]} 22... Bxf4 {[%clk 0:02:02.2]} 23. Nb3 {[%clk
0:01:54.5]} 23... h5 {[%clk 0:01:53.9]} 24. Kh1 {[%clk 0:01:54.4]} 24... Bd6
{[%clk 0:01:52.6]} 25. Rxf8 {[%clk 0:01:51.3]} 25... Rxf8 {[%clk 0:01:52.7]} 26.
Kg2 {[%clk 0:01:51.5]} 26... Rf3 {[%clk 0:01:50.9]} 27. Nd2 {[%clk 0:01:50.3]}
27... Rd3 {[%clk 0:01:50.9]} 28. Nf1 {[%clk 0:01:50.7]} 28... c5 {[%clk
0:01:47.2]} 29. dxc5 {[%clk 0:01:45]} 29... Bxc5 {[%clk 0:01:48.1]} 30. Rd2
{[%clk 0:01:41.6]} 30... e5 {[%clk 0:01:44.7]} 31. Re2 {[%clk 0:01:27.9]} 31...
Ke6 {[%clk 0:01:43.3]} 32. h3 {[%clk 0:01:27.4]} 32... Kf5 {[%clk 0:01:32.6]}
33. Nd2 {[%clk 0:01:13.6]} 33... Be3 {[%clk 0:01:27.9]} 34. Nf1 {[%clk
0:01:00.6]} 34... Bc1 {[%clk 0:01:23.1]} 35. Rc2 {[%clk 0:00:57.2]} 35... Be3
{[%clk 0:01:16.2]} 36. Re2 {[%clk 0:00:56]} 36... Bb6 {[%clk 0:01:15.7]} 37. Nd2
{[%clk 0:00:53.6]} 37... e3 {[%clk 0:01:15]} 38. Nf3 {[%clk 0:00:50]} 38... d4
{[%clk 0:01:14.1]} 39. Nh4+ {[%clk 0:00:33]} 39... Ke4 {[%clk 0:01:12.3]} 40. c4
{[%clk 0:00:29]} 40... Rd2 {[%clk 0:01:10.9]} 41. Kf1 {[%clk 0:00:26.4]} 41...
Rxe2 {[%clk 0:01:10.8]} 42. Kxe2 {[%clk 0:00:26.2]} 42... d3+ {[%clk 0:01:11.7]}
43. Kd1 {[%clk 0:00:25.5]} 43... e2+ {[%clk 0:01:12]} 44. Ke1 {[%clk 0:00:25]}
44... Ba5+ {[%clk 0:01:09.5]} 0-1

[Event "Late-Titled-Tuesday-Blitz-May-14-2024"]
[Site "Chess.com"]
[Date "2024.05.14"]
[Round "2"]
[White "Jospem"]
[Black "GelmanAlexander"]
[Result "1-0"]
[WhiteElo "3020"]
[BlackElo "2661"]
[TimeControl "180+1"]
[EndTime "14:17:19 PDT"]
[Termination "Jospem won by resignation"]

1. e4 {[%clk 0:03:00.9]} 1... c5 {[%clk 0:02:59.8]} 2. Nf3 {[%clk 0:02:57.6]}
2... e6 {[%clk 0:03:00.2]} 3. c3 {[%clk 0:02:57.8]} 3... d5 {[%clk 0:02:58.9]}
4. e5 {[%clk 0:02:58.5]} 4... Nc6 {[%clk 0:02:58.7]} 5. g3 {[%clk 0:02:57.8]}
5... Nge7 {[%clk 0:02:50.6]} 6. Bg2 {[%clk 0:02:56.1]} 6... Nf5 {[%clk
0:02:50.7]} 7. d3 {[%clk 0:02:55.7]} 7... h6 {[%clk 0:02:48.8]} 8. h4 {[%clk
0:02:55.7]} 8... b5 {[%clk 0:02:43.4]} 9. Qe2 {[%clk 0:02:55.4]} 9... Be7 {[%clk
0:02:42.6]} 10. h5 {[%clk 0:02:51.5]} 10... Bb7 {[%clk 0:02:26.2]} 11. O-O
{[%clk 0:02:51.3]} 11... a5 {[%clk 0:02:22.7]} 12. Bf4 {[%clk 0:02:48.6]} 12...
a4 {[%clk 0:02:17.4]} 13. a3 {[%clk 0:02:47]} 13... Qb6 {[%clk 0:02:10.3]} 14.
Nbd2 {[%clk 0:02:46.9]} 14... g5 {[%clk 0:02:01.1]} 15. hxg6 {[%clk 0:02:46.3]}
15... fxg6 {[%clk 0:02:01.7]} 16. g4 {[%clk 0:02:44.9]} 16... Ng7 {[%clk
0:01:55]} 17. c4 {[%clk 0:02:36.6]} 17... bxc4 {[%clk 0:01:40.6]} 18. dxc4
{[%clk 0:02:37.5]} 18... g5 {[%clk 0:01:36.6]} 19. Bg3 {[%clk 0:02:31.3]} 19...
h5 {[%clk 0:01:36.1]} 20. cxd5 {[%clk 0:02:28.8]} 20... exd5 {[%clk 0:01:36.3]}
21. e6 {[%clk 0:02:05.1]} 21... Ba6 {[%clk 0:01:14.3]} 22. Qe3 {[%clk
0:01:59.6]} 22... hxg4 {[%clk 0:01:14.2]} 23. Nxg5 {[%clk 0:01:55.5]} 23...
O-O-O {[%clk 0:00:56.8]} 24. Nf7 {[%clk 0:01:50.7]} 24... Nf5 {[%clk 0:00:49.4]}
25. Qf4 {[%clk 0:01:45.7]} 25... Ncd4 {[%clk 0:00:48.6]} 26. Rfe1 {[%clk
0:01:42]} 26... Nxg3 {[%clk 0:00:42.8]} 27. Qxg3 {[%clk 0:01:42.6]} 27... Ne2+
{[%clk 0:00:36]} 28. Rxe2 {[%clk 0:01:42.7]} 28... Bxe2 {[%clk 0:00:36.9]} 29.
Re1 {[%clk 0:01:39.3]} 29... Bf3 {[%clk 0:00:32.6]} 30. Nxh8 {[%clk 0:01:36.9]}
30... Rxh8 {[%clk 0:00:31.2]} 31. Nxf3 {[%clk 0:01:36.8]} 31... gxf3 {[%clk
0:00:31.1]} 32. Qxf3 {[%clk 0:01:37.7]} 32... Rd8 {[%clk 0:00:16]} 33. Qf7
{[%clk 0:01:35]} 33... Qd6 {[%clk 0:00:12.4]} 34. Rd1 {[%clk 0:01:35.7]} 34...
d4 {[%clk 0:00:12.1]} 35. Qf3 {[%clk 0:01:36.4]} 35... Qb6 {[%clk 0:00:11.3]}
36. Qa8+ {[%clk 0:01:28.4]} 36... Kc7 {[%clk 0:00:11.7]} 37. Qxa4 {[%clk
0:01:29.1]} 37... d3 {[%clk 0:00:09.6]} 38. Qf4+ {[%clk 0:01:27.3]} 38... Bd6
{[%clk 0:00:09]} 39. Qf7+ {[%clk 0:01:27]} 39... Kb8 {[%clk 0:00:08.9]} 40. e7
{[%clk 0:01:26.8]} 40... Bxe7 {[%clk 0:00:06.8]} 41. Qxe7 {[%clk 0:01:27.7]}
41... d2 {[%clk 0:00:06.8]} 42. Qe5+ {[%clk 0:01:26.6]} 42... Ka7 {[%clk
0:00:06.6]} 43. Qf4 {[%clk 0:01:25]} 43... Qxb2 {[%clk 0:00:04.2]} 44. Qc7+
{[%clk 0:01:24.3]} 1-0

[Event "Late-Titled-Tuesday-Blitz-May-14-2024"]
[Site "Chess.com"]
[Date "2024.05.14"]
[Round "2"]
[White "Mikhail_Golubev"]
[Black "Anton_Demchenko"]
[Result "0-1"]
[WhiteElo "2602"]
[BlackElo "2873"]
[TimeControl "180+1"]
[EndTime "14:17:19 PDT"]
[Termination "Anton_Demchenko won by resignation"]

1. e4 {[%clk 0:03:00.9]} 1... e5 {[%clk 0:03:00.7]} 2. Nf3 {[%clk 0:03:00.8]}
2... Nc6 {[%clk 0:03:00.8]} 3. Bc4 {[%clk 0:03:01.3]} 3... Nf6 {[%clk
0:03:00.6]} 4. d3 {[%clk 0:03:01.4]} 4... h6 {[%clk 0:03:00.4]} 5. O-O {[%clk
0:02:58.6]} 5... d6 {[%clk 0:03:00.6]} 6. c3 {[%clk 0:02:58.3]} 6... g5 {[%clk
0:03:00.7]} 7. d4 {[%clk 0:02:54.8]} 7... g4 {[%clk 0:02:56.1]} 8. Nfd2 {[%clk
0:02:49.5]} 8... exd4 {[%clk 0:02:51.7]} 9. cxd4 {[%clk 0:02:49.3]} 9... Nxd4
{[%clk 0:02:49.7]} 10. Qa4+ {[%clk 0:02:36.4]} 10... Nc6 {[%clk 0:02:39.3]} 11.
Nc3 {[%clk 0:02:23.4]} 11... Bg7 {[%clk 0:02:38.9]} 12. e5 {[%clk 0:02:01]}
12... dxe5 {[%clk 0:02:32.4]} 13. Nde4 {[%clk 0:02:00.9]} 13... Nxe4 {[%clk
0:02:24.1]} 14. Nxe4 {[%clk 0:02:00.2]} 14... O-O {[%clk 0:02:24.8]} 15. Be3
{[%clk 0:01:38.8]} 15... Nd4 {[%clk 0:02:07]} 16. Bxd4 {[%clk 0:01:24.8]} 16...
exd4 {[%clk 0:02:07.1]} 17. f4 {[%clk 0:01:25.1]} 17... c6 {[%clk 0:01:36.1]}
18. Qd1 {[%clk 0:00:45.4]} 18... d3 {[%clk 0:01:21.4]} 19. Bxd3 {[%clk
0:00:38.8]} 19... Qd4+ {[%clk 0:01:18.4]} 20. Kh1 {[%clk 0:00:38.3]} 20... Rd8
{[%clk 0:01:19.1]} 21. f5 {[%clk 0:00:20.3]} 21... Qxd3 {[%clk 0:00:44.2]} 22.
Qxg4 {[%clk 0:00:20.2]} 22... Rd4 {[%clk 0:00:44.9]} 23. Nf6+ {[%clk 0:00:13.3]}
23... Kh8 {[%clk 0:00:42.9]} 24. Rfe1 {[%clk 0:00:10.7]} 24... Bxf5 {[%clk
0:00:41.2]} 0-1

[Event "Late-Titled-Tuesday-Blitz-May-14-2024"]
[Site "Chess.com"]
[Date "2024.05.14"]
[Round "2"]
[White "bobo_panda"]
[Black "sillypiggy2024"]
[Result "1-0"]
[WhiteElo "2430"]
[BlackElo "1727"]
[TimeControl "180+1"]
[EndTime "14:17:19 PDT"]
[Termination "bobo_panda won on time"]

1. e4 {[%clk 0:03:00.9]} 1... c6 {[%clk 0:02:59.7]} 2. d4 {[%clk 0:02:58.7]}
2... d5 {[%clk 0:03:00]} 3. exd5 {[%clk 0:02:59.2]} 3... cxd5 {[%clk 0:03:00.1]}
4. Nf3 {[%clk 0:02:59.8]} 4... Nc6 {[%clk 0:02:59.1]} 5. Bb5 {[%clk 0:02:58.7]}
5... Bd7 {[%clk 0:02:52.6]} 6. c4 {[%clk 0:02:57.9]} 6... e6 {[%clk 0:02:41]} 7.
Nc3 {[%clk 0:02:56]} 7... Nf6 {[%clk 0:02:39.6]} 8. Bg5 {[%clk 0:02:54.9]} 8...
dxc4 {[%clk 0:02:34.3]} 9. Bxc4 {[%clk 0:02:54]} 9... Be7 {[%clk 0:02:33.6]} 10.
O-O {[%clk 0:02:53.4]} 10... O-O {[%clk 0:02:30.8]} 11. Re1 {[%clk 0:02:53.1]}
11... Rc8 {[%clk 0:02:26.8]} 12. Bd3 {[%clk 0:02:49.7]} 12... h6 {[%clk
0:02:22.7]} 13. Bd2 {[%clk 0:02:43.4]} 13... Nb4 {[%clk 0:02:18.7]} 14. Bb1
{[%clk 0:02:42.1]} 14... Nbd5 {[%clk 0:02:17.8]} 15. Ne5 {[%clk 0:02:41.7]}
15... a6 {[%clk 0:02:04.1]} 16. Qb3 {[%clk 0:02:31.8]} 16... b5 {[%clk
0:01:52.1]} 17. Ne4 {[%clk 0:02:21.6]} 17... Qb6 {[%clk 0:01:38.8]} 18. Nxf6+
{[%clk 0:02:18.7]} 18... Nxf6 {[%clk 0:01:31.7]} 19. Qd3 {[%clk 0:02:18.2]}
19... Rfd8 {[%clk 0:01:17.5]} 20. Be3 {[%clk 0:02:10.6]} 20... Be8 {[%clk
0:01:10.8]} 21. Ng4 {[%clk 0:01:59.6]} 21... g6 {[%clk 0:00:43.2]} 22. Nxh6+
{[%clk 0:01:58.7]} 22... Kg7 {[%clk 0:00:41]} 23. a3 {[%clk 0:01:51.9]} 23... e5
{[%clk 0:00:36.8]} 24. Ba2 {[%clk 0:01:49.7]} 24... exd4 {[%clk 0:00:33.8]} 25.
Bg5 {[%clk 0:01:48.9]} 25... Bc5 {[%clk 0:00:25]} 26. Qh3 {[%clk 0:01:30.5]}
26... Bd7 {[%clk 0:00:17.9]} 27. Qf3 {[%clk 0:01:26.9]} 27... Be8 {[%clk
0:00:15.1]} 28. b4 {[%clk 0:01:23.7]} 28... Bf8 {[%clk 0:00:12.8]} 29. Rxe8
{[%clk 0:01:11.1]} 29... Rxe8 {[%clk 0:00:11]} 30. Nxf7 {[%clk 0:01:12]} 30...
Rc7 {[%clk 0:00:07.1]} 31. Bh6+ {[%clk 0:01:04.3]} 31... Kh7 {[%clk 0:00:04.2]}
32. Bxf8 {[%clk 0:01:02.7]} 32... Rxf8 {[%clk 0:00:00.8]} 33. Ng5+ {[%clk
0:01:03.6]} 1-0

[Event "Late-Titled-Tuesday-Blitz-May-14-2024"]
[Site "Chess.com"]
[Date "2024.05.14"]
[Round "2"]
[White "AlexeiShirov"]
[Black "jinbojinbo"]
[Result "1-0"]
[WhiteElo "2920"]
[BlackElo "2627"]
[TimeControl "180+1"]
[EndTime "14:17:25 PDT"]
[Termination "AlexeiShirov won by resignation"]

1. e4 {[%clk 0:03:00.9]} 1... e5 {[%clk 0:02:59.5]} 2. Nf3 {[%clk 0:03:00.1]}
2... Nc6 {[%clk 0:02:59.8]} 3. Bb5 {[%clk 0:02:58.7]} 3... a6 {[%clk 0:03:00]}
4. Ba4 {[%clk 0:02:58.3]} 4... d6 {[%clk 0:02:59.5]} 5. O-O {[%clk 0:02:56.5]}
5... Bd7 {[%clk 0:02:58.4]} 6. c3 {[%clk 0:02:55]} 6... g6 {[%clk 0:02:58.6]} 7.
d4 {[%clk 0:02:54.3]} 7... Bg7 {[%clk 0:02:59]} 8. Be3 {[%clk 0:02:48.7]} 8...
Nf6 {[%clk 0:02:58.9]} 9. Nbd2 {[%clk 0:02:48.1]} 9... O-O {[%clk 0:02:58.2]}
10. Re1 {[%clk 0:02:35]} 10... Re8 {[%clk 0:02:57.7]} 11. Bc2 {[%clk 0:02:30.1]}
11... exd4 {[%clk 0:02:31.6]} 12. cxd4 {[%clk 0:02:28.8]} 12... Ng4 {[%clk
0:02:30.2]} 13. Bg5 {[%clk 0:02:27.6]} 13... Qc8 {[%clk 0:02:16.7]} 14. h3
{[%clk 0:02:26.7]} 14... Nf6 {[%clk 0:02:16.2]} 15. e5 {[%clk 0:02:21.5]} 15...
Nd5 {[%clk 0:02:11.4]} 16. Ne4 {[%clk 0:02:19.2]} 16... h6 {[%clk 0:02:00]} 17.
Bh4 {[%clk 0:02:08.8]} 17... Bf5 {[%clk 0:01:43.4]} 18. exd6 {[%clk 0:02:06.7]}
18... cxd6 {[%clk 0:01:24.4]} 19. Nxd6 {[%clk 0:01:57.4]} 19... Rxe1+ {[%clk
0:01:20.6]} 20. Qxe1 {[%clk 0:01:56.7]} 20... Qd7 {[%clk 0:01:20.5]} 21. Nxf5
{[%clk 0:01:55.8]} 21... gxf5 {[%clk 0:01:20.7]} 22. Qd2 {[%clk 0:01:52.3]}
22... Re8 {[%clk 0:01:15]} 23. a3 {[%clk 0:01:50.9]} 23... Nf6 {[%clk
0:01:06.6]} 24. Rd1 {[%clk 0:01:44]} 24... Ne4 {[%clk 0:01:04.6]} 25. Qf4 {[%clk
0:01:37.2]} 25... Qd5 {[%clk 0:00:58.2]} 26. Rd3 {[%clk 0:01:29.7]} 26... Ne7
{[%clk 0:00:56.2]} 27. Bb3 {[%clk 0:01:28.5]} 27... Qb5 {[%clk 0:00:41.1]} 28.
Re3 {[%clk 0:01:18.2]} 28... Nd5 {[%clk 0:00:30.3]} 29. Bxd5 {[%clk 0:01:15.8]}
29... Qxd5 {[%clk 0:00:31.2]} 30. Qc7 {[%clk 0:01:10.9]} 30... Kh7 {[%clk
0:00:25.7]} 31. Ne5 {[%clk 0:01:06.2]} 31... Bxe5 {[%clk 0:00:24.4]} 32. dxe5
{[%clk 0:01:05.6]} 32... Rxe5 {[%clk 0:00:14.6]} 33. f3 {[%clk 0:01:05]} 33...
Qc5 {[%clk 0:00:11]} 34. Qxf7+ {[%clk 0:01:03.8]} 34... Kh8 {[%clk 0:00:10.6]}
35. Bf6+ {[%clk 0:01:03.1]} 35... Nxf6 {[%clk 0:00:10.7]} 36. Qxf6+ {[%clk
0:01:02.5]} 1-0

[Event "Late-Titled-Tuesday-Blitz-May-14-2024"]
[Site "Chess.com"]
[Date "2024.05.14"]
[Round "2"]
[White "MusicCityMaster"]
[Black "MikeSailer"]
[Result "1-0"]
[WhiteElo "2443"]
[BlackElo "2061"]
[TimeControl "180+1"]
[EndTime "14:17:27 PDT"]
[Termination "MusicCityMaster won by checkmate"]

1. d4 {[%clk 0:03:00.9]} 1... d5 {[%clk 0:02:54.2]} 2. c4 {[%clk 0:02:59.3]}
2... c6 {[%clk 0:02:42.2]} 3. Nf3 {[%clk 0:02:58.7]} 3... Nf6 {[%clk 0:02:35.3]}
4. e3 {[%clk 0:02:56.6]} 4... a6 {[%clk 0:02:28.1]} 5. Bd3 {[%clk 0:02:53.9]}
5... b5 {[%clk 0:02:19.5]} 6. b3 {[%clk 0:02:48]} 6... Bg4 {[%clk 0:02:15.6]} 7.
O-O {[%clk 0:02:47]} 7... e6 {[%clk 0:02:11.2]} 8. Nbd2 {[%clk 0:02:46.7]} 8...
Bd6 {[%clk 0:02:10.3]} 9. Bb2 {[%clk 0:02:46.5]} 9... Nbd7 {[%clk 0:02:05.9]}
10. Qc2 {[%clk 0:02:46.5]} 10... O-O {[%clk 0:02:04.2]} 11. Ne5 {[%clk
0:02:43.9]} 11... Qc7 {[%clk 0:01:51.8]} 12. Nxg4 {[%clk 0:02:21.9]} 12... Nxg4
{[%clk 0:01:50.3]} 13. Bxh7+ {[%clk 0:02:22.1]} 13... Kh8 {[%clk 0:01:50.5]} 14.
h3 {[%clk 0:02:22.5]} 14... Ndf6 {[%clk 0:01:16.4]} 15. hxg4 {[%clk 0:02:14.5]}
15... Nxh7 {[%clk 0:01:12.4]} 16. g3 {[%clk 0:01:56.8]} 16... Bxg3 {[%clk
0:01:03.1]} 17. Kg2 {[%clk 0:01:57]} 17... Bd6 {[%clk 0:01:00.8]} 18. Rh1 {[%clk
0:01:56.4]} 18... g6 {[%clk 0:01:00.1]} 19. Nf3 {[%clk 0:01:30.5]} 19... Kg7
{[%clk 0:00:57.5]} 20. e4 {[%clk 0:01:29.3]} 20... Bf4 {[%clk 0:00:35.6]} 21.
cxd5 {[%clk 0:01:20.8]} 21... cxd5 {[%clk 0:00:25.5]} 22. Qxc7 {[%clk
0:01:19.9]} 22... Bxc7 {[%clk 0:00:26]} 23. e5 {[%clk 0:01:17.1]} 23... Rac8
{[%clk 0:00:24.9]} 24. Bc1 {[%clk 0:01:09.8]} 24... Rfd8 {[%clk 0:00:18.3]} 25.
Bh6+ {[%clk 0:01:08.4]} 25... Kg8 {[%clk 0:00:18.4]} 26. Rh3 {[%clk 0:01:00.6]}
26... f5 {[%clk 0:00:09.2]} 27. gxf5 {[%clk 0:00:55.3]} 27... gxf5 {[%clk
0:00:08.1]} 28. Rah1 {[%clk 0:00:54.1]} 28... Kf7 {[%clk 0:00:07]} 29. Bg5
{[%clk 0:00:52.7]} 29... Nxg5 {[%clk 0:00:07.3]} 30. Nxg5+ {[%clk 0:00:52.6]}
30... Ke7 {[%clk 0:00:07.8]} 31. Rh7+ {[%clk 0:00:52.5]} 31... Ke8 {[%clk
0:00:07.8]} 32. Rg7 {[%clk 0:00:50.5]} 32... Bxe5 {[%clk 0:00:06]} 33. Rh8#
{[%clk 0:00:50.1]} 1-0

[Event "Late-Titled-Tuesday-Blitz-May-14-2024"]
[Site "Chess.com"]
[Date "2024.05.14"]
[Round "2"]
[White "Hakiki_satranc"]
[Black "Bastiandash"]
[Result "0-1"]
[WhiteElo "2418"]
[BlackElo "2701"]
[TimeControl "180+1"]
[EndTime "14:17:28 PDT"]
[Termination "Bastiandash won by checkmate"]

1. d4 {[%clk 0:03:00.9]} 1... Nf6 {[%clk 0:02:59.5]} 2. c4 {[%clk 0:03:00.2]}
2... e6 {[%clk 0:02:59.7]} 3. Nf3 {[%clk 0:02:59.1]} 3... b6 {[%clk 0:02:59.9]}
4. a3 {[%clk 0:02:57.9]} 4... Bb7 {[%clk 0:03:00]} 5. Nc3 {[%clk 0:02:58.3]}
5... d5 {[%clk 0:02:56.3]} 6. cxd5 {[%clk 0:02:40.7]} 6... exd5 {[%clk
0:02:55.6]} 7. Bg5 {[%clk 0:02:34.9]} 7... Be7 {[%clk 0:02:42.6]} 8. e3 {[%clk
0:02:32.1]} 8... O-O {[%clk 0:02:41.6]} 9. Bxf6 {[%clk 0:02:08.1]} 9... Bxf6
{[%clk 0:02:40.5]} 10. Be2 {[%clk 0:02:09]} 10... Nd7 {[%clk 0:02:35.3]} 11. O-O
{[%clk 0:02:09.6]} 11... a6 {[%clk 0:02:26.8]} 12. Rc1 {[%clk 0:02:07.3]} 12...
Qe7 {[%clk 0:02:24.6]} 13. Re1 {[%clk 0:02:03.2]} 13... Rfd8 {[%clk 0:02:23.9]}
14. Bd3 {[%clk 0:01:59.6]} 14... c5 {[%clk 0:02:23.5]} 15. Bb1 {[%clk 0:01:52]}
15... g6 {[%clk 0:02:22.8]} 16. h3 {[%clk 0:01:44.5]} 16... Rac8 {[%clk
0:02:14.2]} 17. Ba2 {[%clk 0:01:37.8]} 17... c4 {[%clk 0:02:06.6]} 18. Bb1
{[%clk 0:01:36.7]} 18... b5 {[%clk 0:02:06.3]} 19. e4 {[%clk 0:01:33.5]} 19...
dxe4 {[%clk 0:02:06.6]} 20. Nxe4 {[%clk 0:01:24.6]} 20... Qf8 {[%clk 0:02:02]}
21. Nxf6+ {[%clk 0:01:17.9]} 21... Nxf6 {[%clk 0:02:02.9]} 22. Ne5 {[%clk
0:01:18.3]} 22... Rd5 {[%clk 0:01:54.6]} 23. Qf3 {[%clk 0:01:10.2]} 23... Kg7
{[%clk 0:01:54.6]} 24. Qe3 {[%clk 0:00:54.3]} 24... Rcd8 {[%clk 0:01:52.9]} 25.
Be4 {[%clk 0:00:32.7]} 25... Rxe5 {[%clk 0:01:40.4]} 26. dxe5 {[%clk 0:00:27.6]}
26... Nxe4 {[%clk 0:01:40.6]} 27. Rcd1 {[%clk 0:00:23]} 27... Rxd1 {[%clk
0:01:32.5]} 28. Rxd1 {[%clk 0:00:23.9]} 28... Nc5 {[%clk 0:01:32.6]} 29. Rd6
{[%clk 0:00:21.3]} 29... Qc8 {[%clk 0:01:23.6]} 30. Qd4 {[%clk 0:00:18.1]} 30...
Ne6 {[%clk 0:01:22.8]} 31. Qc3 {[%clk 0:00:16.4]} 31... Qc5 {[%clk 0:01:21.9]}
32. g3 {[%clk 0:00:12.4]} 32... a5 {[%clk 0:01:21.6]} 33. Qe1 {[%clk 0:00:07.7]}
33... b4 {[%clk 0:01:21.3]} 34. axb4 {[%clk 0:00:07.1]} 34... axb4 {[%clk
0:01:22.2]} 35. Rd7 {[%clk 0:00:07.2]} 35... Qc6 {[%clk 0:01:21.6]} 36. Rxb7
{[%clk 0:00:02.4]} 36... Qxb7 {[%clk 0:01:22.5]} 37. Qe3 {[%clk 0:00:02.3]}
37... Qd5 {[%clk 0:01:21]} 38. Kh2 {[%clk 0:00:01.8]} 38... Qd4 {[%clk
0:01:20.7]} 39. Qf3 {[%clk 0:00:00.3]} 39... Qxe5 {[%clk 0:01:18.1]} 40. Qg2
{[%clk 0:00:00.5]} 40... Nd4 {[%clk 0:01:17.8]} 41. Qf1 {[%clk 0:00:01.2]} 41...
Qe2 {[%clk 0:01:17.7]} 42. Kh1 {[%clk 0:00:01.9]} 42... Qxf1+ {[%clk 0:01:17.7]}
43. Kh2 {[%clk 0:00:02.8]} 43... Nf3# {[%clk 0:01:18.6]} 0-1

[Event "Late-Titled-Tuesday-Blitz-May-14-2024"]
[Site "Chess.com"]
[Date "2024.05.14"]
[Round "2"]
[White "LUISMIGUELOV"]
[Black "zverr1"]
[Result "1-0"]
[WhiteElo "2237"]
[BlackElo "2478"]
[TimeControl "180+1"]
[EndTime "14:17:28 PDT"]
[Termination "LUISMIGUELOV won by resignation"]

1. d4 {[%clk 0:02:43]} 1... Nf6 {[%clk 0:02:57]} 2. c3 {[%clk 0:02:43.3]} 2...
d5 {[%clk 0:02:53.1]} 3. Bg5 {[%clk 0:02:43.6]} 3... Ne4 {[%clk 0:02:52.1]} 4.
h4 {[%clk 0:02:43.6]} 4... c5 {[%clk 0:02:45.2]} 5. e3 {[%clk 0:02:42.3]} 5...
Qb6 {[%clk 0:02:41.6]} 6. Qb3 {[%clk 0:02:41.3]} 6... c4 {[%clk 0:02:38.1]} 7.
Qxb6 {[%clk 0:02:41]} 7... axb6 {[%clk 0:02:39]} 8. Nd2 {[%clk 0:02:41.2]} 8...
Nxg5 {[%clk 0:02:30.6]} 9. hxg5 {[%clk 0:02:40.5]} 9... Bf5 {[%clk 0:02:24.5]}
10. f4 {[%clk 0:02:38.9]} 10... b5 {[%clk 0:02:19.8]} 11. a3 {[%clk 0:02:38.7]}
11... Nc6 {[%clk 0:02:19.6]} 12. Rc1 {[%clk 0:02:38.1]} 12... e6 {[%clk
0:02:16.6]} 13. Ngf3 {[%clk 0:02:36.3]} 13... Bd6 {[%clk 0:02:11.8]} 14. Nh4
{[%clk 0:02:33.7]} 14... O-O {[%clk 0:02:10.4]} 15. Nxf5 {[%clk 0:02:33.2]}
15... exf5 {[%clk 0:02:11.3]} 16. g3 {[%clk 0:02:31.7]} 16... Rfe8 {[%clk
0:02:04.5]} 17. Kf2 {[%clk 0:02:31.5]} 17... Rad8 {[%clk 0:01:59.1]} 18. Bg2
{[%clk 0:02:31]} 18... Bc7 {[%clk 0:01:59.3]} 19. Nf3 {[%clk 0:02:27.8]} 19...
Re6 {[%clk 0:01:52.6]} 20. Ne5 {[%clk 0:02:27.1]} 20... Ne7 {[%clk 0:01:48.1]}
21. Rh2 {[%clk 0:02:21.3]} 21... f6 {[%clk 0:01:36.1]} 22. gxf6 {[%clk
0:02:19.3]} 22... Rxf6 {[%clk 0:01:37]} 23. Rch1 {[%clk 0:02:17.7]} 23... h6
{[%clk 0:01:36.4]} 24. Bf3 {[%clk 0:02:12.3]} 24... Rdd6 {[%clk 0:01:33]} 25. g4
{[%clk 0:02:12.2]} 25... fxg4 {[%clk 0:01:26.5]} 26. Nxg4 {[%clk 0:02:11.4]}
26... Rf8 {[%clk 0:01:23.2]} 27. Rg2 {[%clk 0:02:07.7]} 27... Kh7 {[%clk
0:01:13.2]} 28. Bd1 {[%clk 0:02:03.1]} 28... Nf5 {[%clk 0:01:07.3]} 29. Bc2
{[%clk 0:02:02.7]} 29... Kh8 {[%clk 0:01:06.6]} 30. Ne5 {[%clk 0:01:55.4]} 30...
Kg8 {[%clk 0:01:00.2]} 31. Ng6 {[%clk 0:01:50.6]} 31... Rxg6 {[%clk 0:00:39.1]}
32. Rxg6 {[%clk 0:01:48.9]} 32... Ne7 {[%clk 0:00:36.2]} 33. Rg2 {[%clk
0:01:34.2]} 33... Kf7 {[%clk 0:00:36]} 34. Rhg1 {[%clk 0:01:32.4]} 34... g5
{[%clk 0:00:32.9]} 35. fxg5 {[%clk 0:01:28]} 35... Ke6+ {[%clk 0:00:33.3]} 36.
Ke2 {[%clk 0:01:26.9]} 36... hxg5 {[%clk 0:00:34.2]} 37. Rxg5 {[%clk 0:01:25.5]}
37... Rh8 {[%clk 0:00:34.5]} 38. R5g2 {[%clk 0:01:19.8]} 38... Rh3 {[%clk
0:00:34]} 39. e4 {[%clk 0:01:07.4]} 39... Bf4 {[%clk 0:00:31.3]} 40. exd5+
{[%clk 0:01:02.6]} 40... Nxd5 {[%clk 0:00:29.5]} 41. Rg6+ {[%clk 0:00:59.1]}
41... Kd7 {[%clk 0:00:29.4]} 42. Bf5+ {[%clk 0:00:57.4]} 1-0